bitfinex/quotes_SOLUSD_20250131
["timestamp","ask_amount","ask_price","bid_price","bid_amount"]
[1738333834677,0.8646,239.62,239.59,0.6259523]
[1738333834985,0.03,239.62,239.6,12.61547623]
[1738333835185,0.8646,239.62,239.58,12.61547623]
[1738333835492,0.03,239.62,239.6,12.61547623]
[1738333835689,0.03,239.62,239.61,0.62592181]
[1738333835878,0.03,239.62,239.58,12.61547623]
[1738333836080,0.03,239.62,239.59,0.62596095]
[1738333836889,0.03,239.62,239.6,12.61547623]
[1738333837084,0.03,239.62,239.61,0.62593254]
[1738333838101,0.03,239.62,239.58,12.61547623]
[1738333838296,0.03,239.62,239.59,0.62596076]
[1738333839586,0.03,239.62,239.6,12.61547623]
[1738333839797,0.03,239.62,239.61,0.62588518]
[1738333839988,0.03,239.62,239.61,14.03773371]
[1738333842310,0.03,239.62,239.61,0.62588518]
[1738333842801,0.03,239.62,239.61,14.03773371]
[1738333843994,0.03,239.62,239.61,18.21113371]
[1738333844578,0.03,239.62,239.61,14.03773371]
[1738333846805,0.03,239.62,239.61,18.21113371]
[1738333847003,0.03,239.62,239.61,18.33662371]
[1738333847205,0.03,239.62,239.61,18.46211371]
[1738333847506,0.03,239.7,239.66,13.53733853]
[1738333847802,0.03,239.7,239.69,13.41184853]
[1738333848185,0.03,239.7,239.69,12.61547623]
[1738333848376,0.03,239.7,239.69,13.24108256]
[1738333849909,0.03,239.7,239.69,30.95042109]
[1738333850618,0.03,239.7,239.69,26.65293109]
[1738333850776,0.03,239.7,239.66,0.6256749]
[1738333851093,0.03,239.7,239.67,26.02732476]
[1738333851295,0.03,239.7,239.68,0.62567971]
[1738333851691,0.03,239.7,239.68,0.62575904]
[1738333851993,0.03,239.7,239.65,0.62575904]
[1738333852391,0.03,239.7,239.65,13.24123527]
[1738333852579,0.03,239.7,239.65,0.62575904]
[1738333852782,0.03,239.7,239.66,0.62580506]
[1738333854582,0.03,239.7,239.67,12.61547623]
[1738333854922,0.03,239.7,239.68,0.62570668]
[1738333856516,0.03,239.7,239.66,0.62572749]
[1738333856697,0.03,239.7,239.67,26.02732476]
[1738333856917,0.03,239.7,239.68,0.62567322]
[1738333858323,0.03,239.7,239.69,26.02732476]
[1738333859821,0.03,239.7,239.69,30.32481476]
[1738333860018,0.03,239.7,239.69,30.95031585]
[1738333860327,0.03,239.7,239.69,31.20129585]
[1738333860903,0.03,239.73,239.72,20.0]
[1738333861136,0.03,239.73,239.72,47.15467199]
[1738333861330,0.03,239.73,239.72,46.90369199]
[1738333861515,0.03,239.73,239.72,47.90369199]
[1738333861838,0.03,239.73,239.72,51.07519199]
[1738333862037,0.03,239.73,239.72,46.77820199]
[1738333862236,0.03,239.84,239.73,17.58314853]
[1738333862438,0.03,239.84,239.83,12.61547623]
[1738333862613,0.03,239.84,239.83,26.65256722]
[1738333863508,0.03,239.84,239.83,26.77805722]
[1738333865237,0.03,239.84,239.83,26.65256722]
[1738333865536,0.03,239.84,239.83,0.62524246]
[1738333865742,0.03,239.84,239.81,0.62533795]
[1738333867317,0.03,239.84,239.8,0.62533135]
[1738333867953,0.03,239.84,239.76,0.62546722]
[1738333868551,20.0,239.82,239.75,0.62547607]
[1738333868750,20.0,239.82,239.71,0.62556073]
[1738333869056,80.6,239.81,239.71,0.62556073]
[1738333869632,2.919,239.8,239.71,0.62556073]
[1738333869835,80.6,239.79,239.71,0.62556073]
[1738333870040,80.6,239.79,239.72,0.62562468]
[1738333870945,80.6,239.79,239.7,0.62564202]
[1738333871659,0.834,239.78,239.74,12.61547623]
[1738333871824,0.8339,239.82,239.76,12.61547623]
[1738333872025,0.8339,239.82,239.77,0.62547988]
[1738333872271,0.03,239.84,239.78,12.61547623]
[1738333872436,0.8639,239.84,239.8,12.61547623]
[1738333872629,0.8639,239.84,239.81,0.62535308]
[1738333873547,0.03,239.84,239.81,0.62535308]
[1738333873937,0.03,239.84,239.82,26.02732476]
[1738333874140,0.03,239.84,239.83,14.03712529]
[1738333874629,0.03,239.84,239.83,14.16261529]
[1738333875538,0.03,239.84,239.83,18.70868529]
[1738333875760,0.8334,239.98,239.88,13.53733853]
[1738333875934,0.8334,239.98,239.93,12.61547623]
[1738333876762,0.8334,239.98,239.93,26.02732476]
[1738333877669,0.8332,240.02,239.93,29.07281476]
[1738333877965,0.8332,240.02,239.93,29.57222997]
[1738333878675,2.9163,240.02,239.93,14.03675374]
[1738333879069,3.9163,240.02,239.92,0.62504942]
[1738333879374,2.9163,240.02,239.92,0.62504942]
[1738333879544,0.8332,240.02,239.93,26.02732476]
[1738333879868,2.9163,240.02,239.93,13.41184853]
[1738333880033,20.0,239.99,239.87,0.62504454]
[1738333880336,20.0,239.98,239.87,0.62504454]
[1738333880539,20.0,239.98,239.88,26.02732476]
[1738333880854,2.9163,240.02,239.93,12.61547623]
[1738333881056,2.9163,240.02,239.93,13.24045447]
[1738333881256,2.9163,240.02,239.93,26.652303]
[1738333881862,0.8332,240.02,239.93,26.652303]
[1738333882238,0.8332,240.02,239.93,26.777793]
[1738333883675,2.9159,240.06,239.93,26.903283]
[1738333884055,0.8331,240.06,239.93,27.154263]
[1738333884256,20.8331,240.06,239.93,27.154263]
[1738333884566,20.8331,240.06,239.93,26.777793]
[1738333884746,22.9159,240.06,239.93,26.777793]
[1738333886881,0.8331,240.06,239.93,28.154263]
[1738333887874,2.0824,240.11,239.93,28.154263]
[1738333888073,20.0,240.1,239.93,28.154263]
[1738333888585,2.0824,240.11,239.93,28.154263]
[1738333888766,20.0,240.1,239.99,0.12549]
[1738333888969,20.0,240.1,239.97,20.12549]
[1738333888970,0.8329,240.12,240.07,12.61547623]
[1738333889265,0.8329,240.13,240.07,26.15281476]
[1738333890080,20.0,240.12,240.04,0.62458768]
[1738333890902,1.0,240.11,240.0,2.98]
[1738333891075,1.0,240.11,240.01,0.62485294]
[1738333891282,1.583,240.07,240.0,2.98]
[1738333891597,1.583,240.07,239.98,0.62493048]
[1738333891895,20.0,240.03,239.94,14.03679513]
[1738333892908,20.0,240.03,239.94,0.6249466]
[1738333893212,1.0,240.02,239.91,13.41184853]
[1738333893413,1.0,240.02,239.92,0.62509589]
[1738333893588,95.337,240.06,239.97,13.41184853]
[1738333893589,9.5714,240.06,239.97,13.41184853]
[1738333893788,9.5714,240.06,239.98,0.62488933]
[1738333893997,7.4886,240.06,239.99,13.41184853]
[1738333894185,7.4886,240.06,240.0,0.62482028]
[1738333895076,7.4886,240.06,239.96,33.42990978]
[1738333895077,7.4886,240.06,240.01,0.62486727]
[1738333895279,0.8331,240.06,239.99,13.41184853]
[1738333895505,0.8331,240.06,240.0,20.6428176]
[1738333895808,0.8331,240.06,240.01,13.41184853]
[1738333896007,0.03,240.08,240.02,0.6248215]
[1738333896793,0.03,240.08,240.03,13.41184853]
[1738333896992,0.03,240.08,240.04,0.62475029]
[1738333897514,0.03,240.08,239.99,0.6247928]
[1738333898110,2.9456,240.08,239.99,0.6247928]
[1738333898530,2.9456,240.08,240.0,0.62486177]
[1738333899337,2.9456,240.08,240.01,13.41184853]
[1738333899501,2.9456,240.08,240.02,0.62479036]
[1738333899706,0.863,240.08,240.03,13.41184853]
[1738333899905,0.863,240.08,240.04,0.62474706]
[1738333900819,22.9456,240.08,240.0,0.62479656]
[1738333901837,22.9456,240.08,240.01,0.62485588]
[1738333902136,22.9456,240.08,239.99,33.42990978]
[1738333902337,22.9456,240.08,240.01,13.41184853]
[1738333902629,22.9456,240.08,240.02,0.62478631]
[1738333902937,0.863,240.08,240.03,13.41184853]
[1738333903114,0.03,240.08,240.07,20.01806125]
[1738333903319,0.03,240.08,240.07,37.239968]
[1738333903613,0.03,240.18,240.11,20.12549]
[1738333903814,0.03,240.18,240.17,13.41184853]
[1738333904031,0.03,240.18,240.17,34.05426172]
[1738333904334,0.03,240.18,240.17,34.17975172]
[1738333904642,0.03,240.18,240.17,34.05426172]
[1738333904940,0.03,240.18,240.17,14.03620047]
[1738333905451,0.03,240.18,240.17,64.55622172]
[1738333906011,0.03,240.33,240.23,0.12549]
[1738333906317,0.03,240.33,240.31,13.41184853]
[1738333906512,0.03,240.33,240.32,14.03586203]
[1738333908946,0.03,240.33,240.32,12.53586203]
[1738333909431,0.03,240.33,240.29,0.62398493]
[1738333909939,0.03,240.33,240.25,0.62408403]
[1738333910111,0.03,240.33,240.21,3.88421972]
[1738333910611,0.03,240.33,240.22,20.14355125]
[1738333910928,0.03,240.33,240.24,13.41184853]
[1738333911128,0.03,240.33,240.26,13.41184853]
[1738333911329,0.03,240.33,240.27,0.62417332]
[1738333911535,0.03,240.33,240.28,33.42990978]
[1738333911708,0.03,240.33,240.3,13.41184853]
[1738333911908,0.03,240.33,240.31,0.62401437]
[1738333912706,0.03,240.33,240.32,13.41184853]
[1738333913146,0.03,240.33,240.32,33.55539978]
[1738333913306,0.03,240.33,240.32,34.0538104]
[1738333914433,0.03,240.33,240.31,13.41184853]
[1738333914632,0.03,240.33,240.32,0.62404393]
[1738333914815,0.03,240.33,240.29,0.62404305]
[1738333915022,0.03,240.33,240.26,0.62416458]
[1738333915504,0.03,240.33,240.27,13.41184853]
[1738333915711,0.03,240.33,240.28,0.62415167]
[1738333915910,0.03,240.33,240.25,0.62416054]
[1738333916108,0.6540135,240.33,240.25,0.62416054]
[1738333916338,0.03,240.33,240.25,0.62416054]
[1738333917136,1.0,240.3,240.17,0.68722295]
[1738333917318,0.6240135,240.29,240.18,13.41184853]
[1738333917521,22.9132,240.28,240.19,0.62434767]
[1738333917943,0.6240135,240.27,240.19,0.62434767]
[1738333918154,6.648,240.27,240.19,0.62434767]
[1738333918821,0.8323,240.28,240.21,20.01806125]
[1738333919026,0.8322,240.32,240.26,13.41184853]
[1738333919239,0.8322,240.32,240.27,0.62412089]
[1738333919725,2.9123,240.35,240.27,0.62412089]
[1738333920049,0.6240135,240.34,240.26,0.6241494]
[1738333920250,1.6240135,240.34,240.23,0.62425477]
[1738333920933,1.0,240.31,240.2,0.62426215]
[1738333921132,1.0,240.31,240.17,33.49290978]
[1738333921133,1.0,240.29,240.18,0.62437144]
[1738333921450,0.5,240.27,240.18,0.62437144]
[1738333921649,3.9135,240.25,240.17,0.063]
[1738333921821,6.2835,240.23,240.17,0.063]
[1738333922329,2.1240135,240.22,240.17,0.0001]
[1738333922728,20.0,240.2,240.17,0.0001]
[1738333922967,6.2835,240.23,240.17,0.0001]
[1738333923178,1.6635,240.24,240.18,13.41184853]
[1738333923471,20.0,240.23,240.18,0.62440974]
[1738333923963,0.8325,240.22,240.18,0.62440974]
[1738333924137,2.9139,240.22,240.18,0.62441578]
[1738333924476,3.5379135,240.22,240.17,0.0001]
[1738333924678,0.5,240.18,240.17,0.0001]
[1738333924842,0.5,240.16,240.05,0.62457924]
[1738333925186,0.6240135,240.15,240.05,0.62457924]
[1738333925346,0.6240135,240.17,240.06,13.41184853]
[1738333925670,1.1240135,240.17,240.07,1.12465304]
[1738333925874,2.9146,240.16,240.07,1.12465304]
[1738333926165,6.4511,240.14,240.07,0.62465304]
[1738333926368,6.4511,240.14,240.02,1.1247279]
[1738333926369,20.0,240.11,240.02,1.1247279]
[1738333926537,0.6240135,240.1,240.02,0.6247279]
[1738333926843,1.1240135,240.1,240.0,1.1248582]
[1738333927672,1.1240135,240.1,240.0,0.6248582]
[1738333927978,2.9155,240.09,240.0,0.6248582]
[1738333928182,0.6240135,240.08,240.0,0.6248582]
[1738333928386,20.0,240.06,239.96,0.62490194]
[1738333928681,0.6240135,240.05,239.96,0.62490194]
[1738333928853,0.6240135,240.05,239.94,0.063]
[1738333928854,1.5,240.04,239.94,0.063]
[1738333929061,20.0,239.99,239.94,0.063]
[1738333929271,0.6240135,239.98,239.94,0.063]
[1738333929986,0.8334,239.98,239.94,0.063]
[1738333930194,0.8333,240.0,239.96,0.5]
[1738333930380,0.8332,240.03,239.99,0.5]
[1738333930687,0.8332,240.03,240.0,0.62488069]
[1738333931374,0.833,240.08,240.02,0.5]
[1738333931591,0.833,240.08,240.03,0.62476208]
[1738333932189,0.833,240.08,240.04,13.41184853]
[1738333932391,0.8329,240.12,240.06,13.41184853]
[1738333932554,0.8329,240.12,240.07,0.62468928]
[1738333932757,0.8329,240.12,240.07,1.12468928]
[1738333933488,0.8329,240.12,240.08,0.62466438]
[1738333934063,20.0,240.13,240.08,0.62466438]
[1738333935084,2.0818,240.17,240.09,0.5]
[1738333935270,0.6240135,240.16,240.09,0.5]
[1738333935792,20.0,240.15,240.06,0.62466924]
[1738333935976,20.0,240.15,240.09,0.5]
[1738333936173,0.6240135,240.14,240.06,0.62466924]
[1738333936507,20.6240135,240.14,240.04,0.62472788]
[1738333936863,1.0,240.12,240.01,0.5]
[1738333937080,20.0,240.08,239.99,0.62487912]
[1738333937288,0.6240135,240.07,239.98,13.41184853]
[1738333937896,0.6240135,240.07,239.99,0.62494599]
[1738333938100,0.6240135,240.16,240.08,0.5]
[1738333938389,0.8327,240.17,240.11,13.41184853]
[1738333938581,0.8327,240.17,240.12,0.6245723]
[1738333939090,20.8327,240.17,240.12,1.1245723]
[1738333939464,0.8327,240.17,240.12,1.1245723]
[1738333940161,0.8327,240.17,240.14,0.5]
[1738333940357,0.8327,240.17,240.12,0.6245723]
[1738333940561,0.8327,240.17,240.11,14.03643732]
[1738333940792,0.8327,240.17,240.14,0.5]
[1738333941166,0.8327,240.17,240.11,14.03643732]
[1738333941364,20.8327,240.17,240.11,14.03643732]
[1738333941561,20.8327,240.17,240.12,0.62459798]
[1738333941789,1.0,240.11,240.09,0.0001]
[1738333942098,0.6240135,240.1,240.09,0.0001]
[1738333943099,1.1240135,240.1,240.09,0.0001]
[1738333943313,1.9569135,240.1,240.09,0.0001]
[1738333943627,20.0,240.07,239.94,0.68800586]
[1738333943797,0.6240135,240.06,239.99,0.5]
[1738333944000,20.0,240.07,240.0,13.41184853]
[1738333944313,20.0,240.07,240.01,20.64291982]
[1738333944511,2.9153,240.1,240.03,20.01806125]
[1738333944733,2.9153,240.1,240.04,0.62476942]
[1738333946740,0.8329,240.1,240.07,0.5]
[1738333947116,0.8329,240.1,240.05,1.12482085]
[1738333947317,0.8329,240.1,240.04,1.12476949]
[1738333947518,0.8329,240.1,240.07,0.5]
[1738333948046,20.6240135,240.13,240.05,13.41184853]
[1738333948236,20.6240135,240.13,240.06,0.5]
[1738333948448,20.6240135,240.13,240.07,0.62477842]
[1738333948747,22.9149,240.14,240.08,0.5]
[1738333949728,22.9149,240.14,240.07,0.5]
[1738333950036,22.9149,240.14,240.06,0.62469327]
[1738333950246,5.1618,240.28,240.15,0.5]
[1738333950409,20.0,240.25,240.16,0.62448351]
[1738333950612,0.6240135,240.24,240.16,0.62448351]
[1738333950813,0.6240135,240.24,240.15,0.5]
[1738333950814,20.6240135,240.24,240.15,0.5]
[1738333951113,20.6240135,240.24,240.13,0.5]
[1738333951509,20.6240135,240.24,240.12,0.62455843]
[1738333951715,21.6240135,240.24,240.12,0.62455843]
[1738333951943,2.9138,240.23,240.11,0.5]
[1738333952121,20.0,240.2,240.1,0.6246124]
[1738333952323,0.6240135,240.19,240.09,0.063]
[1738333952744,1.0,240.17,240.09,0.063]
[1738333952963,0.6240135,240.16,240.09,0.063]
[1738333953843,20.0,240.14,240.09,0.063]
[1738333954059,23.5390135,240.13,240.09,0.063]
[1738333954721,23.5390135,240.13,240.09,0.0001]
[1738333956146,3.5390135,240.13,240.09,0.0001]
[1738333956342,2.915,240.13,240.09,0.0001]
[1738333958140,0.8328,240.13,240.09,0.0001]
[1738333958540,0.8328,240.13,240.09,13.53743853]
[1738333958734,0.8328,240.15,240.09,0.0001]
[1738333958936,2.9141,240.21,240.12,0.5]
[1738333959137,2.9141,240.21,240.11,33.42990978]
[1738333959138,2.9141,240.21,240.15,0.5]
[1738333959323,2.9141,240.21,240.16,1.12453228]
[1738333959658,0.8326,240.21,240.18,0.5]
[1738333959836,0.8326,240.21,240.18,1.12443426]
[1738333960038,0.8326,240.21,240.18,0.62443426]
[1738333960354,0.8326,240.21,240.18,1.12443426]
[1738333960557,0.8325,240.24,240.18,1.12443426]
[1738333960738,0.8325,240.24,240.18,0.5]
[1738333961122,2.9137,240.24,240.18,0.5]
[1738333961951,2.9137,240.24,240.19,0.62443016]
[1738333962570,2.0812,240.24,240.19,0.62443016]
[1738333962750,2.0812,240.24,240.18,0.5]
[1738333963550,0.6240135,240.23,240.16,0.5]
[1738333963748,2.9137,240.24,240.18,0.5]
[1738333965062,2.9137,240.24,240.16,0.6244651]
[1738333965256,0.6240135,240.23,240.13,1.12447841]
[1738333965576,2.9141,240.2,240.11,0.5]
[1738333965743,0.6240135,240.19,240.11,0.5]
[1738333966080,0.6240135,240.19,240.12,0.5]
[1738333966255,0.6240135,240.19,240.1,0.62464747]
[1738333966579,0.6240135,240.19,240.12,0.5]
[1738333966786,20.0,240.17,240.09,0.5001]
[1738333966947,0.6240135,240.16,240.09,0.0001]
[1738333967148,20.0,240.15,240.09,0.0001]
[1738333967374,0.6240135,240.14,240.09,0.0001]
[1738333967580,20.0,240.15,240.09,0.0001]
[1738333968079,2.9149,240.14,240.09,0.0001]
[1738333968280,4.4149,240.14,240.09,0.0001]
[1738333968448,1.5,240.12,240.09,0.0001]
[1738333968651,0.5,240.1,240.09,0.0001]
[1738333968881,1.5,240.1,240.09,0.0001]
[1738333969345,1.0,240.12,240.09,0.0001]
[1738333969551,1.5,240.1,240.09,0.0001]
[1738333969760,1.0,240.04,239.92,0.563]
[1738333969992,2.9164,240.01,239.93,0.5]
[1738333971483,2.9164,240.01,239.92,0.063]
[1738333971682,20.0,240.0,239.92,0.063]
[1738333972185,2.9167,239.99,239.92,0.063]
[1738333973253,2.9167,239.99,239.94,0.0001]
[1738333973871,2.9167,239.99,239.92,0.063]
[1738333973872,20.0,239.96,239.92,0.0001]
[1738333974194,0.8335,239.95,239.92,0.0001]
[1738333975167,1.0,239.94,239.92,0.0001]
[1738333975496,21.5,239.94,239.92,0.0001]
[1738333975953,20.0,239.9,239.84,0.0001]
[1738333976151,0.8337,239.89,239.84,0.0001]
[1738333976554,20.0,239.88,239.84,0.0001]
[1738333977996,21.0,239.88,239.84,0.0001]
[1738333978203,0.8337,239.87,239.84,0.0001]
[1738333978902,21.0,239.86,239.84,0.0001]
[1738333979202,20.0,239.82,239.7,0.563]
[1738333979413,21.0,239.82,239.7,0.563]
[1738333979573,21.0,239.82,239.7,0.063]
[1738333979777,20.5,239.84,239.73,0.5]
[1738333979985,20.0,239.84,239.73,0.5]
[1738333980182,2.9187,239.83,239.7,20.70679248]
[1738333980411,2.9187,239.83,239.7,0.68873123]
[1738333980593,2.9187,239.83,239.71,0.5]
[1738333981083,2.9187,239.83,239.7,0.063]
[1738333981289,20.0,239.79,239.7,0.063]
[1738333981487,20.0,239.75,239.7,0.063]
[1738333981684,20.0,239.71,239.7,0.063]
[1738333982100,20.8343,239.71,239.69,0.063]
[1738333982283,80.6,239.7,239.69,0.0001]
[1738333982499,0.8343,239.71,239.69,0.0001]
[1738333985089,14.41184853,239.7,239.69,0.0001]
[1738333985284,14.91184853,239.7,239.69,0.0001]
[1738333985527,20.0,239.67,239.61,0.063]
[1738333985696,20.5,239.67,239.59,0.063]
[1738333985884,1.0,239.66,239.59,0.063]
[1738333986284,20.5,239.67,239.59,0.063]
[1738333986285,2.9208,239.65,239.59,0.063]
[1738333986519,3.97711282,239.65,239.59,0.0001]
[1738333986682,20.0,239.61,239.59,0.0001]
[1738333987202,20.0,239.63,239.59,0.0001]
[1738333987617,20.0,239.63,239.59,0.5001]
[1738333987826,2.9208,239.65,239.59,0.5001]
[1738333988060,0.8345,239.65,239.59,0.5001]
[1738333988331,0.8345,239.65,239.63,0.5]
[1738333988498,2.0856,239.73,239.65,0.5]
[1738333989123,80.6,239.69,239.65,0.5]
[1738333989334,20.0,239.66,239.65,0.5]
[1738333989494,20.0,239.66,239.61,0.62592282]
[1738333989696,20.0,239.66,239.59,0.0001]
[1738333989918,20.0,239.66,239.61,0.5]
[1738333990431,0.8344,239.67,239.66,0.5]
[1738333990599,0.8344,239.67,239.64,0.5]
[1738333990807,20.0,239.66,239.62,0.5]
[1738333991013,20.0,239.66,239.6,0.5]
[1738333991214,20.0,239.66,239.63,0.5]
[1738333991607,20.0,239.66,239.61,0.5]
[1738333992425,0.8345,239.65,239.61,0.5]
[1738333992942,0.8345,239.65,239.61,0.563]
[1738333993643,0.8345,239.65,239.63,0.5]
[1738333993821,20.8345,239.66,239.65,0.5]
[1738333994025,0.8345,239.66,239.65,0.5]
[1738333994328,20.0,239.66,239.65,0.5]
[1738333994531,20.0,239.66,239.61,0.563]
[1738333994733,20.0,239.66,239.61,0.063]
[1738333995029,2.9205,239.68,239.61,0.063]
[1738333995030,20.0,239.62,239.61,0.063]
[1738333996435,20.8346,239.62,239.61,0.063]
[1738333998127,0.8346,239.64,239.63,0.5]
[1738333998441,0.8344,239.69,239.65,0.5]
[1738333998622,20.0,239.67,239.63,0.5]
[1738333998827,20.0,239.67,239.61,0.563]
[1738333999138,20.0,239.65,239.61,0.563]
[1738333999830,20.0,239.65,239.63,0.5]
[1738334000030,20.0,239.65,239.61,0.063]
[1738334000549,0.8345,239.64,239.61,0.063]
[1738334000730,20.0,239.62,239.61,0.063]
[1738334002752,0.8346,239.62,239.61,0.0001]
[1738334004227,33.91184853,239.6,239.59,0.0001]
[1738334004430,33.91184853,239.6,239.49,0.563]
[1738334004637,33.41184853,239.6,239.49,0.563]
[1738334004831,2.9215,239.59,239.49,0.563]
[1738334005029,2.9215,239.59,239.5,0.5]
[1738334005621,20.0,239.55,239.49,0.063]
[1738334005839,20.0,239.55,239.45,0.063]
[1738334005840,2.147,239.54,239.45,0.063]
[1738334006030,20.0,239.5,239.45,0.0001]
[1738334006229,20.0,239.46,239.45,0.0001]
[1738334006521,20.0,239.46,239.41,0.0001]
[1738334006727,20.0,239.42,239.41,0.0001]
[1738334007152,0.8352,239.44,239.41,0.0001]
[1738334008863,94.01184853,239.43,239.41,0.0001]
[1738334009169,94.01184853,239.42,239.41,0.0001]
[1738334010759,94.84714853,239.42,239.41,0.0001]
[1738334010975,81.4353,239.42,239.41,0.0001]
[1738334016759,20.0,239.38,239.37,0.0001]
[1738334016947,20.8354,239.38,239.37,0.0001]
[1738334021552,20.0,239.33,239.31,0.0001]
[1738334021782,20.0,239.33,239.25,0.063]
[1738334021783,20.0,239.29,239.25,0.063]
[1738334021968,13.41184853,239.32,239.24,0.063]
[1738334021969,13.91184853,239.32,239.24,0.0001]
[1738334022280,14.91184853,239.32,239.24,0.0001]
[1738334022774,13.41184853,239.27,239.17,0.063]
[1738334023365,0.5,239.26,239.17,0.063]
[1738334023568,13.41184853,239.27,239.17,0.063]
[1738334023757,0.5,239.26,239.17,0.063]
[1738334023957,2.9256,239.26,239.17,0.063]
[1738334024478,0.8359,239.26,239.17,20.70820988]
[1738334025266,0.8359,239.26,239.18,13.41184853]
[1738334025464,0.8359,239.26,239.19,0.62700286]
[1738334025861,0.8358,239.28,239.2,13.41184853]
[1738334026061,0.8356,239.33,239.21,20.64497835]
[1738334026580,0.8356,239.33,239.21,2.1752171]
[1738334026884,22.9247,239.33,239.2,0.6269654]
[1738334027574,2.9247,239.33,239.22,20.01806125]
[1738334027759,2.9247,239.33,239.2,13.41184853]
[1738334027962,2.9247,239.33,239.21,0.6269364]
[1738334028272,2.9247,239.33,239.21,20.64499765]
[1738334029967,0.8356,239.33,239.24,20.01806125]
[1738334030165,0.8356,239.33,239.26,20.01806125]
[1738334030362,0.8356,239.33,239.27,0.62681482]
[1738334030586,0.8356,239.33,239.25,0.62684494]
[1738334030884,3.3425,239.33,239.19,0.063]
[1738334031558,20.0,239.32,239.19,0.063]
[1738334032188,1.4624,239.31,239.19,0.063]
[1738334033193,20.0,239.27,239.19,0.063]
[1738334033560,20.0,239.3,239.19,0.063]
[1738334034073,1.4626,239.29,239.19,0.063]
[1738334035458,20.0,239.28,239.19,0.063]
[1738334036056,20.0,239.24,239.19,0.063]
[1738334037384,1.463,239.23,239.19,0.063]
[1738334038480,1.463,239.23,239.19,0.0001]
[1738334039479,1.463,239.23,239.17,0.0001]
[1738334040693,27.9823,239.19,239.17,0.0001]
[1738334040869,27.9823,239.19,239.13,0.0001]
[1738334040870,13.41184853,239.18,239.13,0.0001]
[1738334041066,13.41184853,239.14,239.07,0.063]
[1738334041291,20.0,239.11,239.07,0.063]
[1738334041877,1.04320909,239.17,239.07,0.063]
[1738334042072,13.41184853,239.16,239.07,0.063]
[1738334042273,7.9823,239.19,239.07,0.063]
[1738334042698,20.0,239.16,239.07,0.063]
[1738334043206,1.4632,239.18,239.08,20.01806125]
[1738334043498,1.4632,239.18,239.07,20.70833952]
[1738334043869,1.4632,239.18,239.07,0.69027827]
[1738334044495,1.4632,239.18,239.07,0.063]
[1738334044702,1.0452,239.18,239.07,0.063]
[1738334045369,20.0,239.14,239.07,0.063]
[1738334046775,20.0,239.1,239.07,0.0001]
[1738334047389,1.4635,239.13,239.07,0.0001]
[1738334047593,20.0,239.12,239.07,0.0001]
[1738334047978,1.5145,239.11,239.07,0.0001]
[1738334049077,1.5145,239.11,239.01,0.063]
[1738334049078,23.555,239.09,239.01,0.063]
[1738334050085,20.0,239.07,239.01,0.0001]
[1738334050399,20.0,239.05,239.01,0.0001]
[1738334050785,20.0,239.01,238.91,1.5171]
[1738334050984,1.4644,239.0,238.91,1.5171]
[1738334051175,1.4644,239.0,238.9,6.4409]
[1738334053305,19.9644,239.01,238.9,6.4409]
[1738334054406,1.0,239.06,238.9,6.4409]
[1738334054592,16.96694853,239.08,238.9,6.4409]
[1738334054778,16.96694853,239.08,238.9,26.45896125]
[1738334054978,1.0,239.05,238.88,0.063]
[1738334055199,1.0,239.01,238.88,0.063]